bitfinex/quotes_SOLUSD_20250811
["timestamp","ask_amount","ask_price","bid_price","bid_amount"]
[1754949698812,8.5762623,174.82,174.8,41.81]
[1754949699013,8.5762623,174.82,174.81,0.67]
[1754949699933,8.5762623,174.83,174.81,0.67]
[1754949700330,8.5762623,174.82,174.81,0.67]
[1754949700723,8.5762623,174.83,174.81,0.67]
[1754949700942,8.5762623,174.85,174.81,0.67]
[1754949701839,0.03,174.86,174.81,6.39043447]
[1754949702015,8.5762623,174.84,174.82,0.67]
[1754949702338,8.5762623,174.84,174.83,0.67]
[1754949702712,8.5762623,174.84,174.8,41.81]
[1754949703034,8.5762623,174.82,174.8,41.81]
[1754949703217,0.03,174.86,174.81,0.67]
[1754949703417,8.5762623,174.84,174.82,0.67]
[1754949703620,0.03,174.86,174.8,46.86073785]
[1754949703621,8.5762623,174.85,174.83,0.67]
[1754949703839,8.5762623,174.85,174.84,41.81]
[1754949704563,0.03,174.85,174.84,47.52951498]
[1754949704748,0.03,174.85,174.84,56.10577728]
[1754949705055,0.03,174.85,174.84,71.21199285]
[1754949706461,8.6062623,174.85,174.84,41.14]
[1754949707137,9.2662623,174.85,174.81,26.0]
[1754949707314,8.5762623,174.82,174.81,26.0]
[1754949707514,8.5762623,174.82,174.81,67.12]
[1754949707738,8.5762623,174.82,174.81,41.12]
[1754949709242,14.95648148,174.82,174.81,41.12]
[1754949710218,19.55299738,174.82,174.81,41.12]
[1754949710429,9.2362623,174.82,174.81,41.12]
[1754949710626,8.5762623,174.82,174.81,41.12]
[1754949713336,8.5762623,174.82,174.81,41.8]
[1754949713552,4.6265159,174.85,174.81,41.8]
[1754949713846,8.5762623,174.82,174.81,41.8]
[1754949715232,8.5762623,174.82,174.81,41.12]
[1754949716152,8.5762623,174.82,174.79,0.06]
[1754949716153,14.95643161,174.82,174.79,0.06]
[1754949716352,8.5762623,174.8,174.79,0.06]
[1754949716520,14.29708609,174.8,174.79,41.18]
[1754949716850,14.95708609,174.8,174.79,41.18]
[1754949718026,14.95708609,174.8,174.79,0.06]
[1754949718229,26.0,174.78,174.77,0.06]
[1754949718427,40.29774073,174.78,174.75,41.18]
[1754949718626,0.66,174.77,174.75,41.18]
[1754949718940,0.66,174.76,174.75,41.18]
[1754949719345,17.856412,174.76,174.75,41.18]
[1754949719546,26.4326743,174.76,174.75,0.06]
[1754949719849,8.5762623,174.76,174.75,0.06]
[1754949720049,8.5762623,174.76,174.75,0.74]
[1754949720374,30.68618411,174.82,174.75,6.46246065]
[1754949720529,10.43545033,174.85,174.76,0.68]
[1754949720730,8.5762623,174.81,174.77,41.12]
[1754949720955,8.5762623,174.84,174.79,8.5762623]
[1754949721357,8.5762623,174.84,174.8,0.68]
[1754949721653,8.5762623,174.84,174.77,41.12]
[1754949721654,8.5762623,174.82,174.81,0.68]
[1754949721855,8.5762623,174.82,174.81,41.82]
[1754949722431,8.5762623,174.82,174.81,41.14]
[1754949723147,14.29643161,174.82,174.81,41.14]
[1754949723341,14.95643161,174.82,174.78,41.12]
[1754949723548,8.5762623,174.79,174.78,41.12]
[1754949724859,14.95741339,174.79,174.78,41.12]
[1754949725045,14.95741339,174.79,174.75,41.18]
[1754949725249,8.5762623,174.76,174.75,41.18]
[1754949725442,8.8662623,174.76,174.75,41.18]
[1754949725647,8.8662623,174.76,174.75,0.06]
[1754949725843,0.29,174.76,174.75,0.06]
[1754949726066,8.5762623,174.76,174.75,0.06]
[1754949726860,4.97618411,174.81,174.75,0.74]
[1754949727061,8.5762623,174.76,174.75,0.74]
[1754949727256,8.5762623,174.76,174.75,0.06]
[1754949727678,8.5762623,174.76,174.75,0.74]
[1754949728443,8.01275126,174.81,174.75,0.74]
[1754949728680,8.01275126,174.81,174.76,41.12]
[1754949728843,30.68618411,174.84,174.77,0.68]
[1754949729043,8.012751,174.83,174.77,0.68]
[1754949729240,8.5762623,174.81,174.77,0.68]
[1754949729974,6.76632833,174.85,174.8,8.5762623]
[1754949730160,6.76632833,174.85,174.81,50.3762623]
[1754949730359,6.76632833,174.85,174.82,9.2562623]
[1754949730360,0.03,174.85,174.82,9.2562623]
[1754949730553,0.03,174.85,174.84,8.5762623]
[1754949730762,0.03,174.86,174.85,15.10621557]
[1754949730954,0.03,174.87,174.86,15.10621557]
[1754949731276,0.03,174.89,174.86,65.48247787]
[1754949731476,0.03,174.89,174.87,9.2562623]
[1754949731696,0.03,174.89,174.87,0.68]
[1754949731905,8.5762623,174.88,174.86,41.12]
[1754949732204,9.2362623,174.87,174.86,41.12]
[1754949732705,8.5762623,174.87,174.86,41.12]
[1754949734198,14.95479606,174.87,174.86,41.12]
[1754949734401,14.95479606,174.87,174.84,41.12]
[1754949734569,8.5762623,174.85,174.84,41.12]
[1754949734770,17.8125246,174.85,174.77,41.22]
[1754949735001,8.5762623,174.78,174.77,41.22]
[1754949735200,8.5762623,174.78,174.77,41.12]
[1754949737496,8.5762623,174.78,174.77,41.8]
[1754949738708,8.5762623,174.78,174.77,41.12]
[1754949739285,14.99774073,174.78,174.77,41.12]
[1754949739479,14.99774073,174.78,174.75,0.06]
[1754949739713,8.5762623,174.76,174.73,0.06]
[1754949739911,17.1525246,174.74,174.73,0.06]
[1754949740222,22.87564026,174.73,174.72,0.06]
[1754949740377,23.57564026,174.73,174.69,41.32]
[1754949740576,8.5762623,174.7,174.69,41.32]
[1754949741019,8.5762623,174.7,174.69,0.2]
[1754949741306,8.5762623,174.71,174.69,0.2]
[1754949741505,8.5762623,174.71,174.69,0.87]
[1754949741705,8.5762623,174.7,174.69,0.87]
[1754949742104,8.5762623,174.71,174.69,0.87]
[1754949743500,8.5762623,174.7,174.69,0.87]
[1754949744006,8.5762623,174.71,174.69,0.87]
[1754949744386,8.5762623,174.71,174.7,0.67]
[1754949744596,8.5762623,174.71,174.69,0.2]
[1754949745385,8.5762623,174.7,174.69,0.2]
[1754949746009,8.5762623,174.7,174.69,41.32]
[1754949746200,9.2762623,174.7,174.69,41.32]
[1754949746403,15.00036075,174.7,174.69,41.32]
[1754949746707,15.00036075,174.7,174.69,0.2]
[1754949746905,45.00036075,174.7,174.69,0.2]
[1754949749487,30.0,174.7,174.69,0.2]
[1754949749805,30.0,174.7,174.69,15.17068842]
[1754949750003,28.56,174.7,174.69,30.27690399]
[1754949750309,0.7,174.8,174.69,30.27690399]
[1754949750310,8.5762623,174.72,174.69,41.34]
[1754949751022,8.5762623,174.76,174.71,8.5762623]
[1754949751188,8.5762623,174.74,174.69,0.2]
[1754949751388,8.5762623,174.71,174.7,41.14]
[1754949751925,9.2762623,174.71,174.7,41.14]
[1754949752212,39.2762623,174.71,174.69,0.2]
[1754949752418,15.00036075,174.7,174.69,0.2]
[1754949752928,30.0,174.71,174.69,0.2]
[1754949753116,8.5762623,174.7,174.69,0.2]
[1754949753295,9.2762623,174.7,174.63,0.06]
[1754949753506,5.72400759,174.71,174.63,0.06]
[1754949753507,8.5762623,174.64,174.63,0.06]
[1754949754190,0.7,174.69,174.63,0.06]
[1754949754385,8.5762623,174.66,174.63,0.06]
[1754949754585,8.5762623,174.67,174.64,0.51]
[1754949754808,8.5762623,174.67,174.65,41.28]
[1754949755016,8.5762623,174.68,174.65,41.79]
[1754949755391,8.5762623,174.67,174.65,41.28]
[1754949755918,6.42344993,174.72,174.65,41.28]
[1754949755919,0.7,174.72,174.65,41.79]
[1754949756089,8.5762623,174.71,174.65,41.28]
[1754949756292,8.5762623,174.7,174.66,15.61621557]
[1754949756493,8.5762623,174.7,174.66,21.34160481]
[1754949756919,8.5762623,174.67,174.63,0.57]
[1754949757219,8.5762623,174.64,174.63,0.06]
[1754949757797,9.2762623,174.64,174.63,0.06]
[1754949758516,6.42606504,174.64,174.63,0.06]
[1754949758820,15.00232734,174.64,174.63,0.06]
[1754949759816,45.00232734,174.64,174.63,0.06]
[1754949760119,30.0,174.64,174.63,0.06]
[1754949760495,30.0,174.64,174.63,24.25247787]
[1754949760814,11.87943982,174.66,174.63,0.57]
[1754949761023,11.87943982,174.66,174.63,0.06]
[1754949761324,11.87943982,174.65,174.64,41.42]
[1754949761998,18.305177,174.65,174.64,41.42]
[1754949762202,11.87943982,174.65,174.64,41.42]
[1754949763195,11.87943982,174.66,174.64,41.42]
[1754949763388,14.67464122,174.74,174.64,41.42]
[1754949763389,6.42278814,174.74,174.65,12.38943982]
[1754949763594,11.87943982,174.72,174.66,11.87943982]
[1754949763816,14.30415454,174.78,174.67,12.38943982]
[1754949764010,11.87943982,174.73,174.68,11.87943982]
[1754949764207,11.87943982,174.71,174.69,41.48]
[1754949764410,11.87943982,174.71,174.66,11.87943982]
[1754949764411,42.57943982,174.7,174.66,41.5]
[1754949764710,11.87943982,174.67,174.66,41.5]
[1754949765503,11.87943982,174.69,174.66,41.5]
[1754949766124,11.87943982,174.68,174.66,41.5]
[1754949767392,11.87943982,174.67,174.66,41.5]
[1754949767801,5.72540936,174.66,174.63,0.06]
[1754949768000,11.87943982,174.64,174.63,0.06]
[1754949768219,11.87943982,174.64,174.63,41.54]
[1754949768398,0.7,174.66,174.63,41.54]
[1754949768600,0.7,174.7,174.63,41.54]
[1754949768914,11.87943982,174.64,174.63,41.54]
[1754949769728,4.68022772,174.76,174.64,15.10621557]
[1754949769928,11.87943982,174.7,174.65,5.72573718]
[1754949770098,11.87943982,174.68,174.64,20.83219167]
[1754949770302,11.87943982,174.68,174.64,21.34219167]
[1754949771338,6.41335007,174.73,174.64,32.71163149]
[1754949771513,11.87943982,174.72,174.67,11.87943982]
[1754949771829,11.87943982,174.72,174.68,42.01]
[1754949772317,11.87943982,174.7,174.68,41.5]
[1754949772704,11.87943982,174.72,174.68,41.5]
[1754949773134,0.69,174.75,174.69,0.51]
[1754949773307,11.87943982,174.73,174.69,0.51]
[1754949773631,11.87943982,174.73,174.69,6.23420006]
[1754949773802,0.69,174.75,174.69,6.23420006]
[1754949774003,11.87943982,174.73,174.69,6.23420006]
[1754949774433,11.87943982,174.74,174.69,6.23420006]
[1754949774929,11.87943982,174.76,174.71,11.87943982]
[1754949775104,11.87943982,174.76,174.72,41.46]
[1754949776010,11.87943982,174.77,174.72,41.97]
[1754949776205,11.87943982,174.77,174.72,53.84943982]
[1754949776415,0.03,174.79,174.74,5.72278814]
[1754949776734,0.03,174.79,174.75,0.51]
[1754949776926,0.03,174.79,174.76,41.44]
[1754949777234,11.90943982,174.79,174.76,41.44]
[1754949777828,0.03,174.79,174.76,41.44]
[1754949778033,0.03,174.79,174.77,27.49565539]
[1754949778531,0.03,174.79,174.77,15.61621557]
[1754949778732,0.03,174.79,174.78,5.72147843]
[1754949779108,0.03,174.79,174.78,32.70713382]
[1754949779323,0.03,174.79,174.78,33.21713382]
[1754949781235,0.03,174.79,174.78,59.21713382]
[1754949782840,0.03,174.79,174.78,46.827694]
[1754949783034,0.03,174.79,174.78,100.61713382]
[1754949783213,0.03,174.79,174.78,88.737694]
[1754949783407,0.03,174.79,174.78,100.61713382]
[1754949784209,0.03,174.79,174.78,88.227694]
[1754949784432,0.03,174.79,174.78,88.207694]
[1754949784827,0.03,174.79,174.78,96.7836056]
[1754949785033,0.03,174.79,174.78,187.1936056]
[1754949785330,0.03,174.79,174.78,186.6836056]
[1754949787212,0.03,174.79,174.78,146.38621557]
[1754949787539,9.2959116,174.79,174.78,131.28]
[1754949787744,9.2959116,174.79,174.78,41.38]
[1754949788036,9.2959116,174.79,174.66,0.51]
[1754949788221,8.5759116,174.74,174.69,8.5759116]
[1754949788431,9.2659116,174.73,174.7,67.38]
[1754949788631,0.69,174.73,174.7,67.38]
[1754949789015,9.2659116,174.73,174.7,67.38]
[1754949789517,0.69,174.73,174.7,67.38]
[1754949789717,9.2659116,174.76,174.71,23.68212717]
[1754949789913,8.5759116,174.77,174.73,15.10621557]
[1754949790126,8.5759116,174.77,174.74,41.4]
[1754949790337,9.2659116,174.78,174.74,41.4]
[1754949790541,0.03,174.79,174.75,23.68212717]
[1754949790721,0.03,174.79,174.76,49.9559116]
[1754949790917,0.03,174.79,174.77,20.82802137]
[1754949791235,0.03,174.79,174.78,65.08212717]
[1754949791426,0.03,174.79,174.78,56.50621557]
[1754949792234,0.03,174.79,174.78,41.4]
[1754949793623,0.72,174.79,174.78,41.4]
[1754949794232,0.03,174.79,174.78,41.4]
[1754949794440,0.03,174.79,174.78,74.60022542]
[1754949795229,0.03,174.79,174.78,62.737694]
[1754949795443,0.03,174.79,174.78,100.60022542]
[1754949796844,0.03,174.79,174.78,74.54022542]
[1754949797428,0.03,174.79,174.78,74.03022542]
[1754949797818,0.03,174.79,174.78,32.69022542]
[1754949798017,0.03,174.79,174.78,74.01022542]
[1754949798745,0.03,174.79,174.78,74.52022542]
[1754949798934,0.03,174.79,174.78,74.01022542]
[1754949799148,0.03,174.79,174.78,62.147694]
[1754949799353,0.03,174.79,174.78,74.01022542]
[1754949802231,0.03,174.79,174.78,74.52022542]
[1754949802433,1e-08,174.79,174.78,164.99237326]
[1754949802733,1e-08,174.79,174.78,164.42022542]
[1754949803960,1e-08,174.79,174.78,163.89022542]
[1754949804434,1e-08,174.79,174.78,189.89022542]
[1754949805933,1e-08,174.79,174.78,99.99022542]
[1754949806765,1e-08,174.79,174.78,41.10621557]
[1754949806971,1e-08,174.79,174.78,31.72147843]
[1754949807135,1e-08,174.79,174.78,100.01022542]
[1754949807476,1e-08,174.79,174.78,46.827694]
[1754949807680,0.66000001,174.79,174.78,56.46621557]
[1754949808047,0.66000001,174.79,174.78,68.32874699]
[1754949808048,1e-08,174.79,174.78,68.32874699]
[1754949808252,0.66000001,174.79,174.78,56.46621557]
[1754949808542,1e-08,174.79,174.78,68.32874699]
[1754949808737,1e-08,174.79,174.78,165.03237326]
[1754949808936,1e-08,174.79,174.78,163.95022542]
[1754949809166,1e-08,174.79,174.78,164.03022542]
[1754949809346,1e-08,174.79,174.78,152.167694]
[1754949809556,1e-08,174.79,174.78,164.03022542]
[1754949809870,0.66000001,174.79,174.78,56.58621557]
[1754949810080,1e-08,174.79,174.78,15.10621557]
[1754949810243,1e-08,174.79,174.78,68.46874699]
[1754949810558,0.66000001,174.79,174.76,15.10621557]
[1754949810863,1e-08,174.79,174.78,15.10621557]
[1754949811037,1e-08,174.79,174.77,41.52]
[1754949811353,0.66000001,174.79,174.78,15.10621557]
[1754949812069,0.66000001,174.79,174.74,26.0]
[1754949812273,1e-08,174.79,174.78,11.86253142]
[1754949812456,0.66,174.78,174.76,26.0]
[1754949812648,1e-08,174.79,174.77,56.64621557]
[1754949812847,1e-08,174.79,174.77,41.54]
[1754949813068,0.66000001,174.79,174.77,47.26170372]
[1754949813565,0.66000001,174.79,174.74,14.30697035]
[1754949813566,12.52253142,174.78,174.74,15.10621557]
[1754949813865,1e-08,174.79,174.76,11.86253142]
[1754949814050,1e-08,174.79,174.77,41.54]
[1754949814365,0.66,174.78,174.77,41.54]
[1754949814574,1e-08,174.79,174.77,53.40253142]
[1754949814771,1e-08,174.79,174.77,50.11644156]
[1754949815086,0.66000001,174.79,174.77,41.54]
[1754949815256,1e-08,174.79,174.78,23.68265713]
[1754949815443,0.66000001,174.79,174.78,23.68265713]
[1754949815643,1e-08,174.79,174.78,23.68265713]
[1754949816484,1e-08,174.79,174.78,50.19265713]
[1754949816780,0.03,174.81,174.8,41.10621557]
[1754949816965,0.03,174.81,174.8,96.94348092]
[1754949817171,0.03,174.81,174.8,97.51556329]
[1754949817341,1e-08,174.81,174.8,98.02556329]
[1754949818564,1e-08,174.81,174.8,97.51556329]
[1754949818871,1e-08,174.81,174.8,96.94348092]
[1754949819053,1e-08,174.81,174.8,97.45348092]
[1754949819673,0.03,174.83,174.81,15.10621557]
[1754949819963,0.03,174.83,174.82,65.75467406]
[1754949820171,0.03,174.83,174.82,66.26467406]
[1754949821049,0.03,174.83,174.82,71.98484337]
[1754949821564,0.03,174.85,174.84,41.10621557]
[1754949821745,0.03,174.85,174.84,91.16265713]
[1754949822372,0.03,174.85,174.84,82.58621557]
[1754949822542,0.03,174.85,174.84,91.16265713]
[1754949823153,0.03,174.85,174.84,96.88217211]
[1754949823571,0.03,174.85,174.84,186.78217211]
[1754949823952,0.69,174.85,174.84,131.00621557]
[1754949824268,0.69,174.85,174.84,41.10621557]
[1754949824473,0.03,174.85,174.84,96.86217211]
[1754949824679,0.69,174.85,174.84,91.14265713]
[1754949824872,0.69,174.85,174.84,96.86217211]
[1754949825676,0.69,174.85,174.84,91.14265713]
[1754949826052,0.69,174.85,174.84,96.86217211]
[1754949826650,0.69,174.85,174.84,186.76217211]
[1754949826651,0.03,174.85,174.84,186.76217211]
[1754949826952,0.03,174.85,174.84,195.84861367]
[1754949827154,0.03,174.85,174.84,186.76217211]
[1754949827361,0.03,174.85,174.84,145.30217211]
[1754949827569,0.03,174.85,174.84,186.74217211]
[1754949829168,0.03,174.85,174.84,203.89217211]
[1754949829371,0.03,174.85,174.84,186.74217211]
[1754949830076,1e-08,174.85,174.84,169.82861367]
[1754949831178,0.03,174.87,174.86,105.00621556]
[1754949831377,0.03,174.87,174.86,161.233404]
[1754949831577,0.03,174.89,174.88,41.10621557]
[1754949831764,0.03,174.89,174.88,91.08265713]
[1754949831969,0.72,174.89,174.88,91.08265713]
[1754949833075,0.72,174.89,174.88,82.50621557]
[1754949833260,0.72,174.89,174.88,91.08265713]
[1754949833575,0.72,174.89,174.88,96.8008639]
[1754949834081,0.03,174.91,174.89,15.10621557]
[1754949834283,0.03,174.91,174.9,49.95644156]
[1754949834656,0.72,174.91,174.9,49.95644156]
[1754949835059,0.03,174.91,174.9,49.95644156]
[1754949835578,0.03,174.91,174.9,55.67399444]
[1754949836777,0.03,174.91,174.9,70.78021001]
[1754949837175,0.03,174.91,174.9,96.78021001]
[1754949837585,0.03,174.93,174.9,96.78021001]
[1754949837586,0.03,174.93,174.92,41.10621557]
[1754949837781,0.03,174.93,174.92,91.02265713]
[1754949838073,0.03,174.93,174.92,49.68265713]
[1754949838380,0.03,174.93,174.92,91.00265713]
[1754949838566,0.03,174.93,174.92,82.42621557]
[1754949838772,0.72,174.93,174.92,91.00265713]
[1754949839599,0.03,174.93,174.92,96.71955628]
[1754949839888,2.71749361,174.99,174.93,15.10621557]
[1754949840090,2.71749361,174.99,174.98,8.57644156]
[1754949840389,11.29393517,174.99,174.98,41.32]
[1754949841366,17.00854743,174.99,174.98,41.32]
[1754949841991,3.40749361,174.99,174.98,41.32]
[1754949842389,2.71749361,174.99,174.98,49.89644156]
[1754949842789,11.98393517,174.99,174.98,41.32]
[1754949843000,17.69854743,174.99,174.98,41.32]
[1754949843185,11.98393517,174.99,174.98,41.32]
[1754949843393,17.69854743,174.99,174.98,40.6]
[1754949843702,11.98393517,174.99,174.98,41.32]
[1754949844315,11.98393517,174.99,174.86,15.10621557]
[1754949844610,8.57644156,174.97,174.92,8.57644156]
[1754949844776,0.6,174.96,174.93,41.32]
[1754949844975,8.57644156,174.94,174.93,41.32]
[1754949845188,9.17644156,174.94,174.93,41.32]
[1754949845393,8.57644156,174.95,174.93,41.32]
[1754949846302,8.57644156,174.96,174.93,41.32]
[1754949846808,14.29196107,174.97,174.93,41.32]
[1754949847009,8.57644156,174.95,174.93,41.32]
[1754949848083,0.6,174.96,174.93,41.32]
[1754949848289,9.17644156,174.96,174.93,41.32]
[1754949848684,8.57644156,174.95,174.93,41.32]
[1754949849103,9.17644156,174.94,174.88,41.10621557]
[1754949849305,8.57644156,174.91,174.89,41.3]
[1754949849480,8.57644156,174.91,174.88,26.0]
[1754949849681,8.57644156,174.9,174.88,26.0]
[1754949849988,8.57644156,174.9,174.89,41.3]
[1754949850691,8.57644156,174.9,174.85,14.29553658]
[1754949851004,6.31591883,174.95,174.86,50.51644156]
[1754949851186,8.57644156,174.91,174.86,50.51644156]
[1754949851394,8.57644156,174.91,174.87,0.66]
[1754949851588,8.57644156,174.91,174.88,41.94]
[1754949851788,6.31591883,174.95,174.89,0.66]
[1754949852101,8.57644156,174.94,174.9,41.28]
[1754949852302,9.17644156,174.93,174.9,41.28]
[1754949852477,8.57644156,174.93,174.9,41.28]
[1754949852804,8.57644156,174.93,174.9,41.94]
[1754949853110,8.57644156,174.95,174.91,0.66]
[1754949853282,14.29178982,174.97,174.92,50.51644156]
[1754949853477,30.0,174.93,174.92,41.94]
[1754949853789,38.57644156,174.93,174.88,55.4007912]
[1754949853991,8.57644156,174.92,174.89,41.28]
[1754949854707,8.57644156,174.9,174.89,41.28]
[1754949855179,0.6,174.92,174.89,41.28]
[1754949855378,8.57644156,174.9,174.89,41.28]
[1754949855994,14.89399444,174.9,174.89,41.28]
[1754949856610,5.71700317,174.92,174.89,41.28]
[1754949856790,8.57644156,174.91,174.89,41.28]
[1754949856990,8.57644156,174.92,174.89,41.28]
[1754949857491,8.57644156,174.91,174.89,41.34]
[1754949858397,8.57644156,174.9,174.89,41.34]
[1754949859309,5.71657234,174.93,174.89,41.34]
[1754949859505,8.57644156,174.9,174.89,41.34]
[1754949859906,9.17644156,174.9,174.89,41.34]
[1754949860225,5.71657234,174.93,174.89,42.03]
[1754949860397,8.57644156,174.92,174.89,42.03]
[1754949860721,8.57644156,174.93,174.89,42.03]
[1754949861013,8.57644156,174.92,174.89,42.03]
[1754949861197,8.57644156,174.92,174.89,41.34]
[1754949861381,5.71627819,174.94,174.89,41.34]
[1754949861583,8.57644156,174.9,174.89,0.06]
[1754949861903,8.57644156,174.9,174.89,41.26]
[1754949862104,14.89399444,174.9,174.89,41.26]
[1754949862413,8.57644156,174.9,174.89,41.26]
[1754949863032,14.89399444,174.9,174.89,41.26]
[1754949863495,14.89399444,174.9,174.89,0.06]
[1754949864025,44.89399444,174.9,174.87,41.18]
[1754949864312,34.57644156,174.88,174.85,0.06]
[1754949864528,8.57644156,174.86,174.85,0.06]
[1754949866024,14.29530236,174.86,174.85,0.06]
[1754949866588,38.57644156,174.86,174.85,0.06]
[1754949867306,44.29530236,174.86,174.85,0.06]
[1754949867730,30.0,174.86,174.85,0.06]
[1754949869942,44.29530236,174.86,174.85,0.06]
[1754949870113,44.89530236,174.86,174.85,0.06]
[1754949873707,70.89530236,174.86,174.85,0.06]
[1754949874036,88.08383236,174.86,174.85,0.06]
[1754949874621,84.86834501,174.86,174.85,0.06]
[1754949875539,26.0,174.84,174.83,1e-08]
[1754949875724,61.36095421,174.84,174.83,1e-08]
[1754949875926,77.06716978,174.84,174.83,1e-08]
[1754949876323,79.97182991,174.84,174.83,1e-08]
[1754949877544,85.69134489,174.84,174.83,1e-08]
[1754949877829,126.87134489,174.84,174.81,0.06]
[1754949878129,35.36095421,174.82,174.81,0.06]
[1754949878513,35.96095421,174.82,174.81,0.06]
[1754949878908,35.36095421,174.82,174.81,0.06]
[1754949879814,41.08112352,174.82,174.81,0.06]
[1754949880226,43.37345252,174.82,174.81,0.06]
[1754949881537,41.08112352,174.82,174.81,0.06]
[1754949883131,35.36095421,174.82,174.81,0.75]
[1754949883437,41.08112352,174.82,174.81,0.75]
[1754949883629,41.08112352,174.82,174.81,0.06]
[1754949884941,35.36095421,174.82,174.81,0.06]
[1754949885149,30.0,174.82,174.81,0.75]
[1754949886417,35.36095421,174.82,174.81,0.75]
[1754949886911,41.08112352,174.82,174.81,0.06]
[1754949888434,35.36095421,174.82,174.81,0.06]
[1754949888634,35.36095421,174.82,174.81,0.75]
[1754949889042,35.36095421,174.82,174.81,0.06]
[1754949889227,35.36095421,174.82,174.81,0.74]
[1754949891045,41.08112352,174.82,174.81,0.06]
[1754949892147,30.0,174.82,174.81,0.06]
[1754949892316,35.36095421,174.82,174.81,0.06]
[1754949893020,41.08112352,174.82,174.81,0.06]
[1754949896426,30.0,174.82,174.81,0.74]
[1754949896739,35.36095421,174.82,174.81,0.74]
[1754949898843,35.36095421,174.82,174.81,0.06]
[1754949899020,30.0,174.82,174.81,0.74]
[1754949899649,35.36095421,174.82,174.81,0.74]
[1754949900451,35.36095421,174.82,174.81,0.06]
[1754949900960,30.0,174.82,174.81,47.28095421]
[1754949901136,30.0,174.82,174.81,41.92]
[1754949901749,35.36095421,174.82,174.81,41.92]
[1754949901954,5.39095421,174.83,174.81,41.92]
[1754949902348,5.36095421,174.82,174.81,41.24]
[1754949902729,11.08112352,174.82,174.81,41.24]
[1754949902926,0.03,174.83,174.81,41.24]
[1754949903130,35.36095421,174.82,174.81,41.24]
[1754949904150,30.0,174.82,174.81,41.92]
[1754949905366,5.36095421,174.82,174.81,41.92]
[1754949905766,5.36095421,174.82,174.81,41.24]
[1754949905955,11.08112352,174.82,174.81,41.24]
[1754949907384,11.08112352,174.82,174.81,0.06]
[1754949907542,41.08112352,174.82,174.81,0.06]
[1754949910371,41.68112352,174.82,174.81,0.06]
[1754949910675,46.40214505,174.82,174.81,0.06]
[1754949911247,45.80214505,174.82,174.81,0.06]
[1754949911546,41.08112352,174.82,174.81,0.06]
[1754949912444,35.72016931,174.82,174.81,0.06]
[1754949912752,41.08112352,174.82,174.81,0.06]
[1754949914354,30.0,174.82,174.81,0.74]
[1754949914674,35.36095421,174.82,174.81,0.74]
[1754949915049,30.0,174.82,174.81,0.74]
[1754949916081,30.0,174.82,174.81,6.10095421]
[1754949916371,0.03,174.83,174.81,6.10095421]
[1754949916372,30.03,174.83,174.81,11.82116056]
[1754949916671,30.03,174.83,174.82,47.22095421]
[1754949916871,0.03,174.83,174.82,47.22095421]
[1754949917171,0.03,174.83,174.82,62.32716978]
[1754949918051,1e-08,174.83,174.82,62.89918671]
[1754949918472,1e-08,174.83,174.82,68.61935602]
[1754949919390,1e-08,174.83,174.82,68.04733909]
[1754949920464,1e-08,174.83,174.82,41.86]
[1754949920791,1e-08,174.83,174.82,52.94112352]
[1754949921172,1e-08,174.83,174.82,68.04733909]
[1754949922796,1e-08,174.83,174.82,71.25604995]
[1754949923776,1e-08,174.83,174.82,161.15604995]
[1754949924097,1e-08,174.83,174.82,71.25604995]
[1754949926294,1e-08,174.83,174.82,161.13604995]
[1754949929101,0.03,174.87,174.86,58.29621557]